[Event "*** Titled Tuesday Blitz"]
[Site "Chess.com"]
[Date "2021.03.16"]
[Round "2"]
[White "Shuvalov"]
[Black "Darius321"]
[Result "1-0"]
[WhiteElo "2491"]
[BlackElo "2266"]
[TimeControl "180+1"]
[EndTime "10:16:55 PDT"]
[Termination "Shuvalov won by resignation"]

1. Nf3 {[%clk 0:02:56.6]} 1... d5 {[%clk 0:02:59]} 2. c4 {[%clk 0:02:56.1]} 2...
dxc4 {[%clk 0:02:58.2]} 3. e3 {[%clk 0:02:54.8]} 3... Nf6 {[%clk 0:02:56.1]} 4.
Bxc4 {[%clk 0:02:53]} 4... c5 {[%clk 0:02:46]} 5. d4 {[%clk 0:02:50.4]} 5...
cxd4 {[%clk 0:02:42.8]} 6. exd4 {[%clk 0:02:50.4]} 6... e6 {[%clk 0:02:37.3]} 7.
O-O {[%clk 0:02:49.4]} 7... Be7 {[%clk 0:02:36.7]} 8. Nc3 {[%clk 0:02:48.9]}
8... O-O {[%clk 0:02:36.5]} 9. Re1 {[%clk 0:02:48.5]} 9... Nc6 {[%clk
0:02:35.9]} 10. a3 {[%clk 0:02:44.8]} 10... b6 {[%clk 0:02:33.8]} 11. Bg5 {[%clk
0:02:23.7]} 11... Bb7 {[%clk 0:02:29.3]} 12. Qd3 {[%clk 0:02:19.7]} 12... Nd5
{[%clk 0:02:20.2]} 13. Bd2 {[%clk 0:02:05.5]} 13... Na5 {[%clk 0:02:05.9]} 14.
Ba2 {[%clk 0:02:04]} 14... Bf6 {[%clk 0:01:36.2]} 15. Rad1 {[%clk 0:02:01.3]}
15... Nxc3 {[%clk 0:01:35.3]} 16. Bxc3 {[%clk 0:01:58.4]} 16... Bd5 {[%clk
0:01:32.6]} 17. Bb1 {[%clk 0:01:57.5]} 17... g6 {[%clk 0:01:31.6]} 18. Ne5
{[%clk 0:01:53.6]} 18... Rc8 {[%clk 0:01:22.7]} 19. Re3 {[%clk 0:01:30.6]} 19...
Nc4 {[%clk 0:01:17]} 20. Rh3 {[%clk 0:01:27]} 20... Nxe5 {[%clk 0:01:08.8]} 21.
dxe5 {[%clk 0:01:26.8]} 21... Bg7 {[%clk 0:01:07.9]} 22. Qd4 {[%clk 0:01:20]}
22... Qg5 {[%clk 0:00:58.6]} 23. Rg3 {[%clk 0:01:18.1]} 23... Qh5 {[%clk
0:00:54.9]} 24. Bc2 {[%clk 0:01:12.8]} 24... Rfd8 {[%clk 0:00:50.4]} 25. Qe3
{[%clk 0:01:05]} 25... Bh6 {[%clk 0:00:44.6]} 26. Qe1 {[%clk 0:01:02.3]} 26...
Bf4 {[%clk 0:00:40.1]} 27. Rh3 {[%clk 0:01:02]} 27... Qg5 {[%clk 0:00:35.2]} 28.
g3 {[%clk 0:00:55.6]} 28... Qg4 {[%clk 0:00:27.5]} 29. Rh4 {[%clk 0:00:53.3]}
29... Qf3 {[%clk 0:00:27]} 30. Rxd5 {[%clk 0:00:53.3]} 30... Rxd5 {[%clk
0:00:23.2]} 31. Rxf4 {[%clk 0:00:53.4]} 31... Qh5 {[%clk 0:00:19.7]} 32. Kg2
{[%clk 0:00:51.8]} 32... Rcd8 {[%clk 0:00:18.3]} 33. Bb3 {[%clk 0:00:50.9]}
33... Rd3 {[%clk 0:00:17.1]} 34. Bc4 {[%clk 0:00:49.6]} 34... Rd1 {[%clk
0:00:16]} 35. Qe3 {[%clk 0:00:48.3]} 35... Rb1 {[%clk 0:00:13.8]} 36. Be2 {[%clk
0:00:47.7]} 36... Qh6 {[%clk 0:00:11.1]} 37. Rd4 {[%clk 0:00:46.6]} 37... Qxe3
{[%clk 0:00:10.2]} 38. Rxd8+ {[%clk 0:00:46.1]} 38... Kg7 {[%clk 0:00:10.4]} 39.
fxe3 {[%clk 0:00:46.9]} 1-0

[Event "*** Titled Tuesday Blitz"]
[Site "Chess.com"]
[Date "2021.03.16"]
[Round "2"]
[White "Andrakhanova"]
[Black "mbachez"]
[Result "0-1"]
[WhiteElo "2255"]
[BlackElo "2480"]
[TimeControl "180+1"]
[EndTime "10:17:00 PDT"]
[Termination "mbachez won on time"]

1. c4 {[%clk 0:02:57.4]} 1... e5 {[%clk 0:02:59.4]} 2. g3 {[%clk 0:02:56.9]}
2... Nf6 {[%clk 0:02:57.4]} 3. Bg2 {[%clk 0:02:56.8]} 3... Bc5 {[%clk
0:02:57.4]} 4. e3 {[%clk 0:02:56.7]} 4... O-O {[%clk 0:02:57.2]} 5. Ne2 {[%clk
0:02:56.8]} 5... Re8 {[%clk 0:02:56.6]} 6. Nbc3 {[%clk 0:02:56.9]} 6... d6
{[%clk 0:02:56.1]} 7. O-O {[%clk 0:02:56.2]} 7... c6 {[%clk 0:02:53.2]} 8. b3
{[%clk 0:02:52]} 8... Bb6 {[%clk 0:02:52.9]} 9. d4 {[%clk 0:02:50.5]} 9... e4
{[%clk 0:02:50.2]} 10. d5 {[%clk 0:02:48.3]} 10... Na6 {[%clk 0:02:45]} 11. dxc6
{[%clk 0:02:46.4]} 11... bxc6 {[%clk 0:02:44.6]} 12. Bb2 {[%clk 0:02:46.3]}
12... Nc5 {[%clk 0:02:43.3]} 13. Rb1 {[%clk 0:02:23.2]} 13... Bf5 {[%clk
0:02:39.5]} 14. h3 {[%clk 0:02:21.3]} 14... h5 {[%clk 0:02:37.5]} 15. Nd4 {[%clk
0:02:13.7]} 15... Bd7 {[%clk 0:02:36.8]} 16. b4 {[%clk 0:02:09.8]} 16... Nd3
{[%clk 0:02:27.7]} 17. Ba1 {[%clk 0:02:08.3]} 17... d5 {[%clk 0:02:23.2]} 18.
cxd5 {[%clk 0:02:02.1]} 18... cxd5 {[%clk 0:02:23]} 19. Na4 {[%clk 0:01:46.7]}
19... Bc7 {[%clk 0:02:18]} 20. Nc5 {[%clk 0:01:38.2]} 20... Nxc5 {[%clk
0:02:14.1]} 21. bxc5 {[%clk 0:01:39.1]} 21... Qc8 {[%clk 0:02:11.5]} 22. Kh2
{[%clk 0:01:37.2]} 22... h4 {[%clk 0:02:11.6]} 23. Nb5 {[%clk 0:01:28.8]} 23...
Bxb5 {[%clk 0:02:03.9]} 24. Rxb5 {[%clk 0:01:26.4]} 24... Qa6 {[%clk 0:01:52.4]}
25. a4 {[%clk 0:01:19.4]} 25... Rad8 {[%clk 0:01:50.1]} 26. Bd4 {[%clk
0:00:27.4]} 26... Qe6 {[%clk 0:01:24.9]} 27. Bxf6 {[%clk 0:00:26.6]} 27... Qxf6
{[%clk 0:01:23.9]} 28. Qg4 {[%clk 0:00:27.1]} 28... d4 {[%clk 0:01:19.4]} 29.
exd4 {[%clk 0:00:20.4]} 29... Rxd4 {[%clk 0:01:18.7]} 30. Rb7 {[%clk 0:00:17.4]}
30... Bb8 {[%clk 0:01:11]} 31. f4 {[%clk 0:00:09.7]} 31... exf3 {[%clk
0:01:08.3]} 32. Rxf3 {[%clk 0:00:09.8]} 32... hxg3+ {[%clk 0:00:56.9]} 33. Kh1
{[%clk 0:00:09.9]} 33... Re1+ {[%clk 0:00:55.3]} 34. Bf1 {[%clk 0:00:08.3]}
34... Rxf1+ {[%clk 0:00:54.5]} 35. Kg2 {[%clk 0:00:05.6]} 35... Rf2+ {[%clk
0:00:54.4]} 0-1

[Event "*** Titled Tuesday Blitz"]
[Site "Chess.com"]
[Date "2021.03.16"]
[Round "2"]
[White "bazar-wokzal"]
[Black "Alexander_Moskalenko"]
[Result "0-1"]
[WhiteElo "2499"]
[BlackElo "2762"]
[TimeControl "180+1"]
[EndTime "10:17:04 PDT"]
[Termination "Alexander_Moskalenko won on time"]

1. e4 {[%clk 0:03:00.9]} 1... c6 {[%clk 0:02:55.2]} 2. d4 {[%clk 0:03:00.4]}
2... d5 {[%clk 0:02:44.7]} 3. e5 {[%clk 0:03:00.5]} 3... Bf5 {[%clk 0:02:43.3]}
4. Nc3 {[%clk 0:03:00.2]} 4... e6 {[%clk 0:02:43.2]} 5. g4 {[%clk 0:03:00]} 5...
Bg6 {[%clk 0:02:43.7]} 6. Nge2 {[%clk 0:02:59.8]} 6... Ne7 {[%clk 0:02:43.9]} 7.
Be3 {[%clk 0:02:58.7]} 7... h5 {[%clk 0:02:42.1]} 8. Nf4 {[%clk 0:02:58.6]} 8...
hxg4 {[%clk 0:02:41.4]} 9. Nxg6 {[%clk 0:02:58.3]} 9... Nxg6 {[%clk 0:02:42.3]}
10. Qxg4 {[%clk 0:02:57.7]} 10... Qh4 {[%clk 0:02:42.2]} 11. Qg3 {[%clk
0:02:45.4]} 11... Bb4 {[%clk 0:02:40.4]} 12. O-O-O {[%clk 0:02:39.9]} 12... Nd7
{[%clk 0:02:38.5]} 13. Bd3 {[%clk 0:02:35.6]} 13... Bxc3 {[%clk 0:02:16.8]} 14.
bxc3 {[%clk 0:02:35.3]} 14... O-O-O {[%clk 0:02:17.3]} 15. Bxg6 {[%clk
0:02:31.9]} 15... fxg6 {[%clk 0:02:18.2]} 16. Qxg6 {[%clk 0:02:26.9]} 16... Rde8
{[%clk 0:02:18.1]} 17. Qxg7 {[%clk 0:02:08.2]} 17... Rhg8 {[%clk 0:02:17.8]} 18.
Qh6 {[%clk 0:02:04]} 18... Qe7 {[%clk 0:02:17.7]} 19. Rdg1 {[%clk 0:01:56.4]}
19... Rh8 {[%clk 0:02:14.3]} 20. Qg6 {[%clk 0:01:50.9]} 20... Qa3+ {[%clk
0:02:10.7]} 21. Kd2 {[%clk 0:01:51.2]} 21... Nb6 {[%clk 0:02:11.6]} 22. Qd3
{[%clk 0:01:41.7]} 22... Nc4+ {[%clk 0:02:04.2]} 23. Ke2 {[%clk 0:01:41.3]}
23... Nb2 {[%clk 0:02:05.1]} 24. Qg6 {[%clk 0:01:23.7]} 24... Qa6+ {[%clk
0:02:02]} 25. Ke1 {[%clk 0:01:08]} 25... Qxa2 {[%clk 0:01:59.6]} 26. h4 {[%clk
0:00:56.2]} 26... Nc4 {[%clk 0:01:54.8]} 27. h5 {[%clk 0:00:45.4]} 27... Qa1+
{[%clk 0:01:52.4]} 28. Ke2 {[%clk 0:00:44.1]} 28... Qxc3 {[%clk 0:01:53.3]} 29.
h6 {[%clk 0:00:38.3]} 29... a5 {[%clk 0:01:30.8]} 30. h7 {[%clk 0:00:37.9]}
30... Nxe3 {[%clk 0:01:28.7]} 31. fxe3 {[%clk 0:00:34.8]} 31... a4 {[%clk
0:01:28.6]} 32. Kd1 {[%clk 0:00:20.4]} 32... Qxe3 {[%clk 0:01:19.5]} 33. Qxe8+
{[%clk 0:00:07.9]} 33... Rxe8 {[%clk 0:01:18.6]} 34. Rg8 {[%clk 0:00:07.7]}
34... Qxd4+ {[%clk 0:01:15.6]} 35. Kc1 {[%clk 0:00:06.1]} 35... Qa1+ {[%clk
0:01:03.6]} 36. Kd2 {[%clk 0:00:06.5]} 36... Qd4+ {[%clk 0:01:04.5]} 37. Kc1
{[%clk 0:00:07]} 37... Qf4+ {[%clk 0:00:59.9]} 38. Kb1 {[%clk 0:00:04.1]} 38...
Qb4+ {[%clk 0:00:56.1]} 39. Ka2 {[%clk 0:00:01.8]} 39... a3 {[%clk 0:00:52.4]}
0-1

[Event "*** Titled Tuesday Blitz"]
[Site "Chess.com"]
[Date "2021.03.16"]
[Round "2"]
[White "c_r_e_e_p_e_r"]
[Black "Artem_Sadovsky"]
[Result "0-1"]
[WhiteElo "2344"]
[BlackElo "2608"]
[TimeControl "180+1"]
[EndTime "10:17:06 PDT"]
[Termination "Artem_Sadovsky won by resignation"]

1. e4 {[%clk 0:03:00.9]} 1... a5 {[%clk 0:03:00]} 2. d4 {[%clk 0:03:00.8]} 2...
h5 {[%clk 0:03:00.1]} 3. Bd3 {[%clk 0:02:59.4]} 3... g6 {[%clk 0:02:59.8]} 4.
Nf3 {[%clk 0:02:59]} 4... b6 {[%clk 0:03:00.3]} 5. O-O {[%clk 0:02:58.7]} 5...
Ba6 {[%clk 0:03:00.2]} 6. Re1 {[%clk 0:02:56.3]} 6... Bh6 {[%clk 0:02:59.5]} 7.
Bxh6 {[%clk 0:02:51]} 7... Nxh6 {[%clk 0:03:00.4]} 8. Qd2 {[%clk 0:02:51]} 8...
Bxd3 {[%clk 0:03:00]} 9. Qxd3 {[%clk 0:02:50.3]} 9... Na6 {[%clk 0:03:00.9]} 10.
Nbd2 {[%clk 0:02:49.7]} 10... Nb4 {[%clk 0:03:00.7]} 11. Qc3 {[%clk 0:02:48.4]}
11... Kf8 {[%clk 0:02:58.2]} 12. a3 {[%clk 0:02:46.9]} 12... Na6 {[%clk
0:02:58.8]} 13. d5 {[%clk 0:02:43.7]} 13... Kg8 {[%clk 0:02:59.1]} 14. e5 {[%clk
0:02:43.6]} 14... Nc5 {[%clk 0:02:59.1]} 15. b4 {[%clk 0:02:40.6]} 15... axb4
{[%clk 0:02:58.8]} 16. axb4 {[%clk 0:02:40.7]} 16... Rxa1 {[%clk 0:02:58.7]} 17.
Rxa1 {[%clk 0:02:40.7]} 17... Nb7 {[%clk 0:02:58.6]} 18. Ne4 {[%clk 0:02:32.4]}
18... Nf5 {[%clk 0:02:58]} 19. Nd4 {[%clk 0:02:22.6]} 19... Nxd4 {[%clk
0:02:56.9]} 20. Qxd4 {[%clk 0:02:22.8]} 20... Kg7 {[%clk 0:02:57.7]} 21. c4
{[%clk 0:02:01.2]} 21... f6 {[%clk 0:02:43.2]} 22. f4 {[%clk 0:01:53.9]} 22...
Rf8 {[%clk 0:02:43.4]} 23. f5 {[%clk 0:01:48.8]} 23... c5 {[%clk 0:02:42]} 24.
Qb2 {[%clk 0:01:08.4]} 24... gxf5 {[%clk 0:02:34.7]} 25. Ng3 {[%clk 0:01:05]}
25... Kg6 {[%clk 0:02:32]} 26. Rf1 {[%clk 0:00:55.5]} 26... e6 {[%clk
0:02:31.3]} 27. Qe2 {[%clk 0:00:42.8]} 27... Rh8 {[%clk 0:02:31.2]} 28. Qf3
{[%clk 0:00:37.2]} 28... fxe5 {[%clk 0:02:06.1]} 29. dxe6 {[%clk 0:00:35.1]}
29... dxe6 {[%clk 0:02:05.7]} 30. Qxb7 {[%clk 0:00:34.4]} 30... cxb4 {[%clk
0:01:55.1]} 31. Qc6 {[%clk 0:00:30.6]} 31... Qc8 {[%clk 0:01:40.5]} 32. Qxb6
{[%clk 0:00:24.6]} 32... f4 {[%clk 0:01:34.8]} 33. Ne4 {[%clk 0:00:15.4]} 33...
Qxc4 {[%clk 0:01:35.1]} 34. Nd6 {[%clk 0:00:15.7]} 34... Qd4+ {[%clk 0:01:29]}
35. Qxd4 {[%clk 0:00:15.3]} 35... exd4 {[%clk 0:01:29.9]} 36. Rxf4 {[%clk
0:00:15.1]} 36... e5 {[%clk 0:01:27.6]} 37. Rf2 {[%clk 0:00:12.7]} 37... Rb8
{[%clk 0:01:16.4]} 38. Rb2 {[%clk 0:00:10.8]} 38... Kf6 {[%clk 0:01:17]} 39. Kf2
{[%clk 0:00:10]} 39... Ke6 {[%clk 0:01:17.5]} 40. Ne4 {[%clk 0:00:09.7]} 40...
Kd5 {[%clk 0:01:16.9]} 41. Nf6+ {[%clk 0:00:09.3]} 41... Kc4 {[%clk 0:01:17.1]}
42. Ke2 {[%clk 0:00:04.6]} 42... Kc3 {[%clk 0:01:17.3]} 43. Rb1 {[%clk
0:00:04.3]} 43... Kc2 {[%clk 0:01:16.9]} 44. Rd1 {[%clk 0:00:03]} 44... b3
{[%clk 0:01:15.8]} 45. Ne4 {[%clk 0:00:02.7]} 45... b2 {[%clk 0:01:11.7]} 46.
Rd2+ {[%clk 0:00:02]} 46... Kb3 {[%clk 0:01:12]} 47. Rd1 {[%clk 0:00:02]} 47...
Ka2 {[%clk 0:01:08.1]} 48. Rd2 {[%clk 0:00:02.1]} 48... Ka1 {[%clk 0:01:07.8]}
49. Rd3 {[%clk 0:00:01.5]} 49... b1=Q {[%clk 0:01:07.4]} 50. Ra3+ {[%clk
0:00:02.1]} 50... Kb2 {[%clk 0:01:07.1]} 51. Ra5 {[%clk 0:00:02.7]} 51... Qxe4+
{[%clk 0:01:06.6]} 0-1

[Event "*** Titled Tuesday Blitz"]
[Site "Chess.com"]
[Date "2021.03.16"]
[Round "2"]
[White "BogdanDeac"]
[Black "Skatchkov_V"]
[Result "1-0"]
[WhiteElo "2986"]
[BlackElo "2617"]
[TimeControl "180+1"]
[EndTime "10:17:09 PDT"]
[Termination "BogdanDeac won by resignation"]

1. b3 {[%clk 0:03:00.9]} 1... Nf6 {[%clk 0:02:56.8]} 2. Bb2 {[%clk 0:03:00.2]}
2... d5 {[%clk 0:02:57.1]} 3. Nf3 {[%clk 0:02:57.3]} 3... c5 {[%clk 0:02:57.2]}
4. e3 {[%clk 0:02:57]} 4... Nc6 {[%clk 0:02:57.5]} 5. Bb5 {[%clk 0:02:55.6]}
5... Bd7 {[%clk 0:02:55.5]} 6. O-O {[%clk 0:02:49.9]} 6... g6 {[%clk 0:02:55.5]}
7. Bxf6 {[%clk 0:02:42.4]} 7... exf6 {[%clk 0:02:56.4]} 8. Nc3 {[%clk
0:02:42.4]} 8... a6 {[%clk 0:02:47.8]} 9. Bxc6 {[%clk 0:02:23]} 9... Bxc6 {[%clk
0:02:33.5]} 10. d4 {[%clk 0:02:21.8]} 10... b6 {[%clk 0:02:33.8]} 11. Qd2 {[%clk
0:01:30.6]} 11... Ra7 {[%clk 0:02:06.6]} 12. Rfd1 {[%clk 0:00:54.8]} 12... Rd7
{[%clk 0:02:05.6]} 13. Qe2 {[%clk 0:00:24.7]} 13... Qa8 {[%clk 0:02:05.2]} 14.
e4 {[%clk 0:00:22.7]} 14... dxe4 {[%clk 0:01:58.8]} 15. d5 {[%clk 0:00:21.4]}
15... Rxd5 {[%clk 0:01:59.4]} 16. Nxd5 {[%clk 0:00:11.6]} 16... Bxd5 {[%clk
0:02:00.3]} 17. Qd2 {[%clk 0:00:11.9]} 17... Bc6 {[%clk 0:01:59.3]} 18. Qf4
{[%clk 0:00:11.5]} 18... Bg7 {[%clk 0:01:56.9]} 19. Qd6 {[%clk 0:00:10.3]} 19...
Qb7 {[%clk 0:01:28.6]} 20. Nd2 {[%clk 0:00:09.7]} 20... Qd7 {[%clk 0:00:51.1]}
21. Nc4 {[%clk 0:00:09.2]} 21... Qxd6 {[%clk 0:00:48.8]} 22. Rxd6 {[%clk
0:00:09.2]} 22... Bb5 {[%clk 0:00:46.5]} 23. Nxb6 {[%clk 0:00:09.1]} 23... O-O
{[%clk 0:00:45.9]} 24. c4 {[%clk 0:00:08.6]} 24... Be8 {[%clk 0:00:44.8]} 25.
Rad1 {[%clk 0:00:08.1]} 25... f5 {[%clk 0:00:45.4]} 26. Rd8 {[%clk 0:00:07.7]}
26... Bd4 {[%clk 0:00:45.3]} 27. Kf1 {[%clk 0:00:07.4]} 27... f4 {[%clk
0:00:45.1]} 28. Nd5 {[%clk 0:00:07.1]} 28... g5 {[%clk 0:00:41.6]} 29. b4 {[%clk
0:00:05.9]} 29... Ba4 {[%clk 0:00:39.3]} 30. Rxf8+ {[%clk 0:00:05.7]} 30... Kxf8
{[%clk 0:00:40.2]} 31. Re1 {[%clk 0:00:06.4]} 31... Bc2 {[%clk 0:00:39.1]} 32.
bxc5 {[%clk 0:00:05.5]} 32... Bd3+ {[%clk 0:00:39.7]} 33. Kg1 {[%clk 0:00:05.7]}
33... Bxc5 {[%clk 0:00:39.4]} 34. Nf6 {[%clk 0:00:06]} 34... e3 {[%clk
0:00:38.3]} 35. Nd7+ {[%clk 0:00:06]} 35... Ke7 {[%clk 0:00:38.6]} 36. Nxc5
{[%clk 0:00:06.9]} 36... Bxc4 {[%clk 0:00:39.5]} 37. fxe3 {[%clk 0:00:06.9]} 1-0

[Event "*** Titled Tuesday Blitz"]
[Site "Chess.com"]
[Date "2021.03.16"]
[Round "2"]
[White "organdzievhren"]
[Black "MuhittinBuker"]
[Result "0-1"]
[WhiteElo "2421"]
[BlackElo "2194"]
[TimeControl "180+1"]
[EndTime "10:17:10 PDT"]
[Termination "MuhittinBuker won by resignation"]

1. e4 {[%clk 0:02:59.7]} 1... e5 {[%clk 0:02:56.6]} 2. Nf3 {[%clk 0:03:00]} 2...
Nc6 {[%clk 0:02:39.2]} 3. Bb5 {[%clk 0:02:59.8]} 3... a6 {[%clk 0:02:38.6]} 4.
Ba4 {[%clk 0:02:59.9]} 4... Nf6 {[%clk 0:02:37.2]} 5. O-O {[%clk 0:03:00]} 5...
Be7 {[%clk 0:02:37]} 6. Re1 {[%clk 0:03:00.2]} 6... b5 {[%clk 0:02:37.3]} 7. Bb3
{[%clk 0:03:01.1]} 7... O-O {[%clk 0:02:36.5]} 8. h3 {[%clk 0:03:01.4]} 8... d6
{[%clk 0:02:35.5]} 9. c3 {[%clk 0:03:01.5]} 9... Na5 {[%clk 0:02:35.6]} 10. Bc2
{[%clk 0:03:01.4]} 10... c5 {[%clk 0:02:36.1]} 11. d3 {[%clk 0:03:02.3]} 11...
Nc6 {[%clk 0:02:33.9]} 12. Bg5 {[%clk 0:03:02.4]} 12... a5 {[%clk 0:02:33.8]}
13. Nbd2 {[%clk 0:03:01.8]} 13... a4 {[%clk 0:02:34]} 14. a3 {[%clk 0:03:00.7]}
14... h6 {[%clk 0:02:32.5]} 15. Bh4 {[%clk 0:03:00.2]} 15... Nd7 {[%clk
0:02:32.2]} 16. Bxe7 {[%clk 0:02:58.8]} 16... Qxe7 {[%clk 0:02:32.8]} 17. c4
{[%clk 0:02:55.3]} 17... Ba6 {[%clk 0:02:25.1]} 18. Rc1 {[%clk 0:02:54.7]} 18...
Nd4 {[%clk 0:02:20.4]} 19. Nxd4 {[%clk 0:02:53.6]} 19... cxd4 {[%clk 0:02:20.6]}
20. cxb5 {[%clk 0:02:51]} 20... Bxb5 {[%clk 0:02:20.3]} 21. Bb1 {[%clk
0:02:50.8]} 21... Nc5 {[%clk 0:02:19.4]} 22. Nc4 {[%clk 0:02:38.2]} 22... Rac8
{[%clk 0:01:59.7]} 23. Ba2 {[%clk 0:02:37.2]} 23... Rc6 {[%clk 0:01:53.6]} 24.
Qd2 {[%clk 0:02:06.7]} 24... Rfc8 {[%clk 0:01:47.4]} 25. Qb4 {[%clk 0:02:04]}
25... Nxd3 {[%clk 0:01:18.7]} 26. Qxb5 {[%clk 0:01:58.2]} 26... Nxe1 {[%clk
0:01:18.1]} 27. Rxe1 {[%clk 0:01:57.5]} 27... Rc5 {[%clk 0:01:15]} 28. Qb4
{[%clk 0:01:53]} 28... Qc7 {[%clk 0:01:01.9]} 29. Nd2 {[%clk 0:01:42.1]} 29...
Rc1 {[%clk 0:00:58.4]} 30. Rxc1 {[%clk 0:01:33.9]} 30... Qxc1+ {[%clk
0:00:57.2]} 31. Kh2 {[%clk 0:01:34.3]} 31... Rc2 {[%clk 0:00:48.5]} 32. Qxa4
{[%clk 0:01:23.6]} 32... Qxd2 {[%clk 0:00:40.3]} 33. Qe8+ {[%clk 0:01:22.2]}
33... Kh7 {[%clk 0:00:39.8]} 34. Qxf7 {[%clk 0:01:03.8]} 34... Qf4+ {[%clk
0:00:32.8]} 35. Qxf4 {[%clk 0:01:03.6]} 35... exf4 {[%clk 0:00:33.2]} 36. a4
{[%clk 0:00:54.9]} 36... Rxb2 {[%clk 0:00:30.1]} 37. Bc4 {[%clk 0:00:54.8]}
37... Rc2 {[%clk 0:00:22.1]} 38. Bb5 {[%clk 0:00:53.9]} 38... Ra2 {[%clk
0:00:18.2]} 39. Kg1 {[%clk 0:00:52.3]} 39... Ra1+ {[%clk 0:00:18]} 40. Kh2
{[%clk 0:00:52.6]} 40... Kg6 {[%clk 0:00:16.8]} 41. g4 {[%clk 0:00:50.3]} 41...
Kf6 {[%clk 0:00:16.1]} 42. Kg2 {[%clk 0:00:49.5]} 42... Ke5 {[%clk 0:00:16.7]}
43. Bc6 {[%clk 0:00:48.9]} 43... d3 {[%clk 0:00:15.3]} 44. Kf3 {[%clk
0:00:48.4]} 44... d2 {[%clk 0:00:15.5]} 0-1

[Event "*** Titled Tuesday Blitz"]
[Site "Chess.com"]
[Date "2021.03.16"]
[Round "2"]
[White "Frolyanov_D"]
[Black "Myshakov_Fedor"]
[Result "1/2-1/2"]
[WhiteElo "2679"]
[BlackElo "2368"]
[TimeControl "180+1"]
[EndTime "10:17:11 PDT"]
[Termination "Game drawn by repetition"]

1. e4 {[%clk 0:03:00.9]} 1... c6 {[%clk 0:02:59.8]} 2. d4 {[%clk 0:02:57.9]}
2... d5 {[%clk 0:02:59.8]} 3. exd5 {[%clk 0:02:58.8]} 3... cxd5 {[%clk 0:03:00]}
4. c4 {[%clk 0:02:58.9]} 4... Nf6 {[%clk 0:02:59.9]} 5. Nc3 {[%clk 0:02:57.2]}
5... e6 {[%clk 0:02:58.6]} 6. Nf3 {[%clk 0:02:56.4]} 6... Be7 {[%clk 0:02:58.3]}
7. cxd5 {[%clk 0:02:54]} 7... Nxd5 {[%clk 0:02:58.1]} 8. Bd3 {[%clk 0:02:53.7]}
8... Nd7 {[%clk 0:02:58]} 9. Nxd5 {[%clk 0:02:48.7]} 9... exd5 {[%clk
0:02:57.9]} 10. O-O {[%clk 0:02:49.2]} 10... Nf6 {[%clk 0:02:56.7]} 11. Ne5
{[%clk 0:02:48.9]} 11... O-O {[%clk 0:02:56.3]} 12. Qf3 {[%clk 0:02:43.4]} 12...
Be6 {[%clk 0:02:54.6]} 13. Bg5 {[%clk 0:02:39.9]} 13... h6 {[%clk 0:02:54]} 14.
Bh4 {[%clk 0:02:36.6]} 14... Nd7 {[%clk 0:02:48.4]} 15. Bxe7 {[%clk 0:02:32.3]}
15... Nxe5 {[%clk 0:02:35.9]} 16. dxe5 {[%clk 0:02:29.7]} 16... Qxe7 {[%clk
0:02:35.7]} 17. Rfe1 {[%clk 0:02:29]} 17... Rfd8 {[%clk 0:02:30.9]} 18. Rad1
{[%clk 0:02:28]} 18... Qh4 {[%clk 0:02:29.6]} 19. h3 {[%clk 0:02:26.8]} 19...
Rac8 {[%clk 0:02:27.8]} 20. a3 {[%clk 0:02:26]} 20... Qg5 {[%clk 0:02:22.5]} 21.
Bb1 {[%clk 0:02:24.3]} 21... Rc5 {[%clk 0:02:14.4]} 22. Qd3 {[%clk 0:02:19.9]}
22... Rdc8 {[%clk 0:02:10.7]} 23. Kh2 {[%clk 0:01:20.6]} 23... Qf4+ {[%clk
0:01:51.3]} 24. Kh1 {[%clk 0:01:15.1]} 24... g6 {[%clk 0:01:41.8]} 25. Qe3
{[%clk 0:00:59]} 25... Qxe3 {[%clk 0:01:40.6]} 26. Rxe3 {[%clk 0:00:59.9]} 26...
Rc1 {[%clk 0:01:39.9]} 27. Ree1 {[%clk 0:01:00.2]} 27... Rxd1 {[%clk 0:01:39.3]}
28. Rxd1 {[%clk 0:01:01.1]} 28... Kf8 {[%clk 0:01:34.4]} 29. Kg1 {[%clk
0:01:00.9]} 29... Ke7 {[%clk 0:01:33.6]} 30. h4 {[%clk 0:00:59.1]} 30... g5
{[%clk 0:01:30.7]} 31. hxg5 {[%clk 0:00:57.4]} 31... hxg5 {[%clk 0:01:30.3]} 32.
f3 {[%clk 0:00:57.9]} 32... a5 {[%clk 0:01:24.2]} 33. Kf2 {[%clk 0:00:58.2]}
33... b5 {[%clk 0:01:22.8]} 34. Ke3 {[%clk 0:00:57.3]} 34... b4 {[%clk
0:01:19.6]} 35. axb4 {[%clk 0:00:56.1]} 35... axb4 {[%clk 0:01:20.5]} 36. Rh1
{[%clk 0:00:53.2]} 36... b3 {[%clk 0:01:11.8]} 37. g3 {[%clk 0:00:52.2]} 37...
Ra8 {[%clk 0:01:00.6]} 38. f4 {[%clk 0:00:50.4]} 38... gxf4+ {[%clk 0:00:53.9]}
39. gxf4 {[%clk 0:00:51.3]} 39... Ra1 {[%clk 0:00:52]} 40. Rf1 {[%clk 0:00:46]}
40... Bh3 {[%clk 0:00:44.3]} 41. Rd1 {[%clk 0:00:36.2]} 41... Bg4 {[%clk
0:00:36.4]} 42. Rf1 {[%clk 0:00:32.8]} 42... Bh3 {[%clk 0:00:29.5]} 43. Rd1
{[%clk 0:00:31.9]} 43... Bg4 {[%clk 0:00:28.7]} 44. Rf1 {[%clk 0:00:31.2]} 44...
Bh3 {[%clk 0:00:27.4]} 1/2-1/2